bitfinex-derivatives/quotes_BTCF0:USTF0_20240917
["timestamp","ask_amount","ask_price","bid_price","bid_amount"]
[1726606972699,0.0979,60233.0,60232.0,0.273991]
[1726606972895,0.0979,60233.0,60232.0,0.274991]
[1726606973795,0.14933994,60253.0,60236.0,0.082985]
[1726606973996,0.0984,60240.0,60236.0,0.082985]
[1726606974298,0.18138,60240.0,60239.0,0.19]
[1726606974500,0.21343516,60240.0,60239.0,0.19]
[1726606975506,0.18138,60240.0,60239.0,0.19]
[1726606975693,0.18138,60240.0,60239.0,0.191]
[1726606976196,0.18138,60240.0,60239.0,0.192]
[1726606978795,0.18138,60240.0,60239.0,0.274981]
[1726606979192,0.0984,60240.0,60239.0,0.274981]
[1726606979597,0.3608,60244.0,60243.0,0.082976]
[1726606979804,0.3608,60244.0,60243.0,0.272976]
[1726606980703,0.3608,60244.0,60243.0,0.273976]
[1726606981208,0.10668989,60248.0,60247.0,0.08297]
[1726606981409,0.3608,60259.0,60247.0,0.19]
[1726606981702,0.0992,60258.0,60257.0,0.082957]
[1726606983209,0.3608,60259.0,60258.0,0.082955]
[1726606983407,0.39284432,60259.0,60258.0,0.082955]
[1726606983594,0.082955,60258.0,60257.0,0.001]
[1726606983800,0.082955,60258.0,60247.0,0.001]
[1726606983801,0.082961,60254.0,60247.0,0.001]
[1726606983999,0.633769,60248.0,60247.0,0.001]
[1726606984197,0.07266947,60248.0,60247.0,0.08297]
[1726606984407,0.00248984,60252.0,60248.0,0.082969]
[1726606984609,0.07268254,60251.0,60250.0,0.19]
[1726606984908,0.082972,60246.0,60243.0,0.00952653]
[1726606985109,0.12785068,60245.0,60241.0,0.272978]
[1726606985414,0.03205068,60244.0,60241.0,0.272978]
[1726606986313,0.03205068,60244.0,60243.0,0.001]
[1726606986518,0.03105068,60244.0,60243.0,0.001]
[1726606987215,0.12905068,60244.0,60243.0,0.001]
[1726606987418,0.21202568,60244.0,60243.0,0.001]
[1726606988021,0.21202568,60244.0,60239.0,0.00248989]
[1726606988022,0.082979,60241.0,60239.0,0.00248989]
[1726606988315,0.180975,60244.0,60241.0,0.082978]
[1726606988521,0.098,60244.0,60241.0,0.082978]
[1726606988813,0.180975,60244.0,60243.0,0.001]
[1726606989204,0.180975,60244.0,60241.0,0.082978]
[1726606989408,0.082976,60243.0,60241.0,0.082978]
[1726606990514,0.082976,60243.0,60241.0,0.081978]
[1726606990917,0.082976,60243.0,60241.0,0.082978]
[1726606991618,0.082976,60243.0,60242.0,0.082977]
[1726606992123,0.083976,60243.0,60242.0,0.082977]
[1726606992622,0.083976,60243.0,60242.0,0.083977]
[1726606992623,0.444776,60243.0,60242.0,0.083977]
[1726606993316,0.444776,60243.0,60242.0,0.084977]
[1726606993712,0.444776,60243.0,60242.0,0.002]
[1726606994525,0.443776,60243.0,60242.0,0.002]
[1726606994722,0.443776,60243.0,60242.0,0.084977]
[1726606994915,0.443776,60243.0,60242.0,0.274977]
[1726606994916,0.3608,60243.0,60242.0,0.274977]
[1726606996422,0.3608,60243.0,60242.0,0.273977]
[1726606996725,0.3608,60243.0,60242.0,0.274977]
[1726606997114,0.098,60244.0,60243.0,0.082976]
[1726606998324,0.098,60244.0,60243.0,0.083976]
[1726607000115,0.098,60244.0,60243.0,0.084976]
[1726607001733,0.4588,60244.0,60243.0,0.002]
[1726607002034,0.62475,60244.0,60243.0,0.002]
[1726607005432,0.541775,60244.0,60243.0,0.002]
[1726607005631,0.61446596,60244.0,60243.0,0.002]
[1726607009141,0.57382935,60244.0,60243.0,0.002]
[1726607009343,0.61446587,60244.0,60243.0,0.002]
[1726607011650,0.61446587,60244.0,60243.0,0.084976]
[1726607011946,0.51646587,60244.0,60243.0,0.084976]
[1726607013246,0.71674001,60244.0,60243.0,0.084976]
[1726607013436,0.64404914,60244.0,60243.0,0.084976]
[1726607013639,0.443775,60244.0,60243.0,0.084976]
[1726607015243,0.443775,60244.0,60243.0,0.002]
[1726607016844,0.47582922,60244.0,60243.0,0.002]
[1726607019054,0.47583029,60244.0,60243.0,0.002]
[1726607022158,0.47583029,60244.0,60243.0,0.084976]
[1726607022357,0.39285529,60244.0,60243.0,0.084976]
[1726607022651,0.3608,60244.0,60243.0,0.084976]
[1726607026246,0.3608,60244.0,60243.0,0.274976]
[1726607027956,0.3608,60246.0,60245.0,0.082973]
[1726607028157,0.39285308,60246.0,60245.0,0.082973]
[1726607028554,0.65035357,60246.0,60245.0,0.082973]
[1726607028860,0.56739317,60246.0,60245.0,0.082973]
[1726607029047,0.733306,60246.0,60245.0,0.082973]
[1726607029251,0.56739317,60246.0,60245.0,0.083973]
[1726607029454,0.73331296,60246.0,60245.0,0.084973]
[1726607030858,0.56739317,60246.0,60245.0,0.084973]
[1726607031060,0.73332116,60246.0,60245.0,0.084973]
[1726607034165,0.56739317,60246.0,60245.0,0.084973]
[1726607035565,0.4758251,60246.0,60245.0,0.084973]
[1726607036861,0.4758251,60246.0,60245.0,0.002]
[1726607037062,0.6887971,60246.0,60245.0,0.002]
[1726607037270,0.6058251,60246.0,60245.0,0.002]
[1726607037967,0.6887971,60246.0,60245.0,0.002]
[1726607038567,0.68879826,60246.0,60245.0,0.002]
[1726607038770,0.55879826,60246.0,60245.0,0.002]
[1726607042374,0.68879826,60246.0,60245.0,0.002]
[1726607042872,0.47582626,60246.0,60245.0,0.002]
[1726607043668,0.51646331,60246.0,60245.0,0.002]
[1726607044268,0.56739905,60246.0,60245.0,0.002]
[1726607044574,0.81631042,60246.0,60245.0,0.002]
[1726607044778,0.65037105,60246.0,60245.0,0.002]
[1726607045073,1.87833105,60246.0,60245.0,0.002]
[1726607046170,0.16596,60240.0,60239.0,0.00248989]
[1726607046480,0.81631531,60240.0,60239.0,0.00248989]
[1726607047573,0.81731531,60240.0,60239.0,0.00248989]
[1726607047774,0.81831531,60240.0,60239.0,0.00348989]
[1726607048371,0.65238705,60240.0,60239.0,0.00348989]
[1726607048681,0.81831531,60240.0,60239.0,0.00348989]
[1726607048873,0.81731531,60240.0,60239.0,0.00348989]
[1726607049175,0.81831531,60240.0,60239.0,0.00348989]
[1726607049577,0.65238705,60240.0,60239.0,0.00348989]
[1726607050678,0.52876,60240.0,60239.0,0.00348989]
[1726607051463,0.5385526,60240.0,60239.0,0.00348989]
[1726607052562,0.7298526,60240.0,60239.0,0.00348989]
[1726607056373,0.8128326,60240.0,60239.0,0.00348989]
[1726607057176,0.8128326,60240.0,60239.0,8.9e-07]
[1726607057365,2.06651833,60240.0,60239.0,8.9e-07]
[1726607057570,2.06651833,60240.0,60228.0,0.0024901]
[1726607057571,0.248985,60229.0,60228.0,9.9e-07]
[1726607057782,1.13264556,60229.0,60228.0,9.9e-07]
[1726607057976,1.63076556,60229.0,60228.0,9.9e-07]
[1726607058684,1.7819178,60229.0,60228.0,0.01000099]
[1726607058881,1.96443046,60229.0,60228.0,0.01000099]
[1726607059083,1.40676823,60229.0,60228.0,0.01000099]
[1726607059281,1.88798344,60229.0,60228.0,0.01000099]
[1726607059881,1.75798344,60229.0,60228.0,0.01000099]
[1726607060280,1.60237557,60229.0,60228.0,0.00800099]
[1726607060572,1.51938057,60229.0,60228.0,0.00800099]
[1726607060776,1.51938057,60229.0,60228.0,0.00100099]
[1726607060980,1.52938057,60229.0,60228.0,0.00200099]
[1726607061183,1.03126057,60229.0,60228.0,0.00200099]
[1726607062486,1.1801801,60229.0,60228.0,0.00200099]
[1726607062683,0.4585801,60229.0,60228.0,0.00200099]
[1726607062882,1.1801801,60229.0,60228.0,0.00200099]
[1726607063389,1.04074666,60229.0,60228.0,0.00200099]
[1726607063683,0.9897902,60229.0,60228.0,0.00200099]
[1726607065585,0.91707609,60229.0,60228.0,0.00200099]
[1726607073694,0.94914198,60229.0,60228.0,0.00200099]
[1726607074693,0.22754198,60229.0,60228.0,0.00200099]
[1726607074896,0.94914198,60229.0,60228.0,0.00200099]
[1726607078687,0.94914198,60229.0,60228.0,0.002]
[1726607079297,0.98979333,60229.0,60228.0,0.002]
[1726607079492,0.26819333,60229.0,60228.0,0.002]
[1726607079699,0.94914198,60229.0,60228.0,0.002]
[1726607079897,1.07914198,60229.0,60228.0,0.002]
[1726607080094,1.11979331,60229.0,60228.0,0.002]
[1726607080790,1.04707609,60229.0,60228.0,0.002]
[1726607081192,1.13007109,60229.0,60228.0,0.002]
[1726607081394,1.13007109,60229.0,60216.0,0.18390297]
[1726607081395,0.49812,60228.0,60216.0,0.00249097]
[1726607081596,0.656824,60217.0,60216.0,0.00249097]
[1726607083393,0.670824,60217.0,60216.0,0.00349097]
[1726607084903,0.587812,60217.0,60216.0,0.00349097]
[1726607085301,0.670824,60217.0,60216.0,0.00349097]
[1726607085995,0.670824,60217.0,60216.0,0.001]
[1726607086589,0.59754236,60217.0,60216.0,0.001]
[1726607086793,0.68055436,60217.0,60216.0,0.001]
[1726607087593,0.59754236,60217.0,60216.0,0.001]
[1726607087790,0.68055436,60217.0,60216.0,0.001]
[1726607088204,0.59754236,60217.0,60216.0,0.001]
[1726607089605,0.59754236,60217.0,60216.0,0.05063605]
[1726607090205,0.59754236,60217.0,60216.0,0.001]
[1726607095209,0.59754236,60217.0,60216.0,0.05065575]
[1726607095408,0.59754236,60217.0,60216.0,0.001]
[1726607099819,0.95834236,60217.0,60216.0,0.001]
[1726607101723,0.95834236,60217.0,60216.0,0.01428]
[1726607103324,0.59754236,60217.0,60216.0,0.01428]
[1726607104116,0.59754236,60217.0,60216.0,0.06393575]
[1726607104327,0.59754236,60217.0,60216.0,0.01428]
[1726607105027,0.59754236,60217.0,60216.0,0.06396954]
[1726607105520,0.59754236,60217.0,60216.0,0.01428]
[1726607106627,0.3748,60217.0,60216.0,0.14700317]
[1726607106825,0.014,60217.0,60216.0,0.595493]
[1726607107020,0.00249101,60221.0,60220.0,0.083008]
[1726607107529,0.3608,60224.0,60223.0,0.083004]
[1726607107828,0.3608,60224.0,60223.0,0.27925314]
[1726607108132,0.3608,60224.0,60223.0,1.7792489]
[1726607109024,0.3678,60224.0,60223.0,1.7802489]
[1726607109625,0.3698,60224.0,60223.0,1.7812489]
[1726607110330,0.3698,60224.0,60223.0,1.715004]
[1726607110630,0.009,60224.0,60223.0,1.715004]
[1726607110830,0.009,60224.0,60223.0,1.714004]
[1726607110831,0.002,60224.0,60223.0,1.714004]
[1726607111628,0.3608,60231.0,60230.0,0.082994]
[1726607111931,0.3608,60231.0,60230.0,0.212994]
[1726607113025,0.3628,60231.0,60230.0,0.213994]
[1726607114032,0.3628,60231.0,60230.0,0.214994]
[1726607114033,0.3648,60231.0,60230.0,0.214994]
[1726607117238,0.004,60231.0,60230.0,0.214994]
[1726607117634,0.004,60231.0,60230.0,0.22490057]
[1726607118722,0.03605875,60231.0,60230.0,0.22490057]
[1726607119131,0.03605875,60231.0,60230.0,0.39088857]
[1726607119132,7.5e-07,60231.0,60230.0,0.39088857]
[1726607119330,0.3608,60240.0,60230.0,1.23998657]
[1726607119530,0.3608,60240.0,60239.0,0.082981]
[1726607119938,0.3608,60240.0,60239.0,1.582981]
[1726607120239,0.0024902,60244.0,60243.0,0.082976]
[1726607120436,0.0024902,60244.0,60243.0,0.212976]
[1726607121224,0.3608,60248.0,60243.0,0.212976]
[1726607121225,0.3608,60248.0,60243.0,1.310936]
[1726607121526,0.3608,60248.0,60247.0,0.13]
[1726607121730,0.3608,60248.0,60247.0,0.21297]
[1726607121930,0.3608,60248.0,60247.0,0.27297]
[1726607122127,0.1005,60254.0,60253.0,0.082962]
[1726607122331,0.14112862,60254.0,60253.0,0.082962]
[1726607122527,0.14112862,60254.0,60239.0,0.082981]
[1726607122528,1.23901128,60254.0,60239.0,0.082981]
[1726607122735,0.08298,60240.0,60239.0,0.082981]
[1726607123137,0.28438,60240.0,60239.0,0.082981]
[1726607123337,0.2014,60240.0,60236.0,0.08547419]
[1726607123541,0.19,60237.0,60236.0,0.08547419]
[1726607123745,0.2014,60240.0,60236.0,0.08547419]
[1726607124852,0.28438,60240.0,60239.0,0.001]
[1726607125644,0.28438,60240.0,60236.0,0.08647419]
[1726607126351,0.28438,60240.0,60239.0,0.001]
[1726607126745,0.28438,60240.0,60236.0,0.08547419]
[1726607126946,0.28438,60240.0,60236.0,0.08647419]
[1726607127145,0.28438,60240.0,60236.0,0.08747419]
[1726607127758,0.28438,60240.0,60236.0,0.08647419]
[1726607128055,0.29420328,60240.0,60236.0,0.08647419]
[1726607128457,0.29420328,60240.0,60239.0,0.001]
[1726607129055,0.29420328,60240.0,60236.0,0.08747419]
[1726607129654,0.2014,60240.0,60239.0,0.083981]
[1726607130247,0.2014,60240.0,60239.0,0.084981]
[1726607131147,0.2014,60240.0,60239.0,0.083981]
[1726607132253,0.28438,60240.0,60239.0,0.083981]
[1726607132758,0.18388,60240.0,60239.0,0.083981]
[1726607133956,0.21593488,60240.0,60239.0,0.084981]
[1726607135152,0.03205488,60240.0,60239.0,0.084981]
[1726607137058,0.03205488,60240.0,60239.0,0.083981]
[1726607137256,0.03205488,60240.0,60239.0,0.084981]
[1726607137562,0.07269205,60240.0,60239.0,0.084981]
[1726607137855,0.07269204,60240.0,60239.0,0.001]
[1726607138755,0.082979,60241.0,60240.0,0.08298]
[1726607139060,0.15567107,60241.0,60240.0,0.08298]
[1726607139848,0.15567107,60241.0,60240.0,0.08398]
[1726607140369,0.12362795,60241.0,60240.0,0.27398]
[1726607140663,0.12362795,60241.0,60240.0,0.37348]
[1726607140664,0.07269207,60241.0,60240.0,0.37348]
[1726607140858,0.082972,60247.0,60240.0,0.37348]
[1726607140859,0.3608,60247.0,60246.0,0.082972]
[1726607141158,0.3608,60247.0,60246.0,0.272972]
[1726607142267,0.3608,60247.0,60246.0,0.273972]
[1726607143262,0.3608,60247.0,60246.0,0.274972]
[1726607143762,0.4558,60252.0,60249.0,0.082968]
[1726607143763,0.3608,60252.0,60249.0,0.082968]
[1726607144059,0.3608,60252.0,60249.0,0.096238]
[1726607144450,0.3608,60252.0,60249.0,1.596238]
[1726607144851,0.3608,60252.0,60249.0,0.096238]
[1726607145058,0.3608,60252.0,60249.0,0.097238]
[1726607145257,0.3608,60252.0,60249.0,0.596158]
[1726607145967,0.3608,60252.0,60249.0,0.098238]
[1726607146353,0.3608,60252.0,60249.0,0.097238]
[1726607146561,0.3608,60252.0,60249.0,0.098238]
[1726607148553,0.00972509,60256.0,60249.0,0.098238]
[1726607148554,0.3608,60254.0,60249.0,0.098238]
[1726607149062,0.03453886,60250.0,60249.0,0.098238]
[1726607149464,0.12609446,60250.0,60249.0,0.098238]
[1726607151965,0.20009689,60250.0,60249.0,0.098238]
[1726607152164,0.12609446,60250.0,60249.0,0.098238]
[1726607152461,0.20009795,60250.0,60249.0,0.098238]
[1726607152862,0.12609446,60250.0,60249.0,0.098238]
[1726607153255,0.00249012,60250.0,60249.0,0.098238]
[1726607153466,0.03453903,60250.0,60249.0,0.098238]
[1726607153663,0.12609512,60250.0,60249.0,0.098238]
[1726607155860,0.00249012,60250.0,60249.0,0.098238]
[1726607160565,0.00249012,60250.0,60249.0,0.01527]
[1726607160757,0.16842212,60250.0,60249.0,0.01527]
[1726607161272,0.49047229,60250.0,60249.0,0.01527]
[1726607161477,0.4904728,60250.0,60249.0,0.01527]
[1726607161663,0.45842212,60250.0,60249.0,0.01527]
[1726607163974,0.53110467,60250.0,60249.0,0.01527]
[1726607166364,0.58203395,60250.0,60249.0,0.01527]
[1726607166677,0.58203394,60250.0,60249.0,0.01527]
[1726607167174,0.53110466,60250.0,60249.0,0.01527]
[1726607167477,0.58203396,60250.0,60249.0,0.01527]
[1726607170266,0.49906796,60250.0,60249.0,0.01527]
[1726607170973,0.4075068,60250.0,60249.0,0.01527]
[1726607174272,0.7683068,60250.0,60249.0,0.01527]
[1726607174982,0.80894122,60250.0,60249.0,0.01527]
[1726607178681,0.44814122,60250.0,60249.0,0.01527]
[1726607178880,0.00972509,60256.0,60249.0,0.14527]
[1726607179070,0.3608,60258.0,60252.0,0.13]
[1726607179271,0.3608,60258.0,60257.0,0.082957]
[1726607179476,0.3608,60258.0,60256.0,0.082958]
[1726607179789,0.443756,60258.0,60256.0,0.082958]
[1726607180776,0.443756,60258.0,60257.0,0.01327]
[1726607182380,0.443756,60258.0,60257.0,0.01427]
[1726607183078,0.443756,60258.0,60257.0,0.01527]
[1726607186083,0.4946791,60258.0,60257.0,0.01527]
[1726607186987,0.53530581,60258.0,60257.0,0.01527]
[1726607188880,0.56735242,60258.0,60257.0,0.01527]
[1726607190081,0.56735242,60258.0,60257.0,0.098227]
[1726607190386,0.56735087,60258.0,60257.0,0.098227]
[1726607191291,0.56734808,60258.0,60257.0,0.098227]
[1726607192192,0.51642693,60258.0,60257.0,0.01527]
[1726607193992,0.47580156,60258.0,60257.0,0.01527]
[1726607194595,0.443756,60258.0,60257.0,0.01527]
[1726607195597,0.443756,60258.0,60257.0,0.098227]
[1726607197496,0.3608,60258.0,60257.0,0.098227]
[1726607200400,0.39284552,60258.0,60257.0,0.098227]
[1726607200699,0.39284552,60258.0,60257.0,0.097227]
[1726607200997,0.3608,60258.0,60257.0,0.098227]
[1726607203699,0.3608,60258.0,60257.0,0.288227]
[1726607208002,0.3608,60258.0,60257.0,0.228227]
[1726607209099,0.48438833,60258.0,60257.0,0.228227]
[1726607210996,0.65026956,60258.0,60257.0,0.228227]
[1726607211904,0.12358823,60258.0,60257.0,0.228227]
[1726607212606,0.19791407,60258.0,60257.0,0.098227]
[1726607212907,0.19791407,60258.0,60257.0,0.01527]
[1726607212908,0.20654323,60258.0,60257.0,0.01527]
[1726607214399,0.1492929,60268.0,60257.0,1.326107]
[1726607214607,0.3608,60271.0,60257.0,1.326107]
[1726607214608,0.3608,60271.0,60270.0,0.082939]
[1726607214902,0.3608,60271.0,60270.0,1.712939]
[1726607215092,0.3608,60276.0,60270.0,1.712939]
[1726607215093,0.3608,60276.0,60275.0,0.082932]
[1726607215300,0.01214348,60282.0,60275.0,0.13]
[1726607215496,0.01214348,60282.0,60279.0,0.13]
[1726607215792,0.00248866,60282.0,60279.0,0.13]
[1726607215999,0.00248866,60282.0,60280.0,0.19]
[1726607216298,0.00248866,60282.0,60281.0,0.096194]
[1726607217599,0.00248866,60282.0,60281.0,0.097194]
[1726607217804,0.00248866,60282.0,60281.0,0.098194]
[1726607220410,0.00248866,60282.0,60281.0,0.01527]
[1726607221406,0.08293,60277.0,60275.0,0.00248841]
[1726607221612,0.456,60276.0,60275.0,0.08542041]
[1726607223606,0.46649897,60276.0,60275.0,0.08642041]
[1726607223999,0.46649897,60276.0,60275.0,0.00348841]
[1726607224201,0.54942997,60276.0,60275.0,0.00348841]
[1726607224406,0.62208106,60276.0,60275.0,0.00348841]
[1726607224701,0.62308106,60276.0,60275.0,0.00348841]
[1726607224906,0.54015006,60276.0,60275.0,0.00348841]
[1726607225105,0.53065109,60276.0,60275.0,0.08642041]
[1726607225412,0.43545109,60276.0,60275.0,0.27642041]
[1726607225620,0.39483681,60276.0,60275.0,0.27642041]
[1726607225804,0.03403681,60276.0,60275.0,0.37482041]
[1726607226517,0.03303681,60276.0,60275.0,0.37582041]
[1726607226712,0.03303681,60276.0,60275.0,0.45875241]
[1726607227010,0.03303681,60276.0,60275.0,0.45775241]
[1726607227213,0.03303681,60276.0,60275.0,0.45875241]
[1726607227410,0.03303681,60276.0,60275.0,0.45775241]
[1726607228302,0.03303681,60276.0,60275.0,0.46731932]
[1726607230210,0.03303681,60276.0,60275.0,1.56503932]
[1726607230509,0.03303681,60276.0,60275.0,0.96503932]
[1726607230702,0.03303681,60276.0,60275.0,1.56503932]
[1726607230905,0.03303681,60276.0,60275.0,0.96503932]
[1726607231102,0.001,60276.0,60275.0,0.46731932]
[1726607235225,0.001,60276.0,60275.0,0.55025132]
[1726607236220,0.001,60276.0,60275.0,2.05025132]
[1726607238114,0.001,60276.0,60275.0,3.14797132]
[1726607238316,0.36328866,60282.0,60281.0,0.082924]
[1726607238514,0.36328866,60282.0,60281.0,0.355848]
[1726607239520,0.36328866,60282.0,60281.0,0.356848]
[1726607239707,0.36328866,60282.0,60281.0,0.357848]
[1726607239912,0.36328866,60282.0,60281.0,0.371118]
[1726607240213,0.39531959,60282.0,60281.0,0.371118]
[1726607240715,0.03451959,60282.0,60281.0,0.371118]
[1726607243912,0.03451959,60282.0,60281.0,0.311118]
[1726607246210,0.00248866,60282.0,60281.0,0.311118]
[1726607250828,0.2835,60291.0,60290.0,0.082911]
[1726607251023,0.3608,60298.0,60297.0,0.082902]
[1726607251227,0.3608,60305.0,60297.0,0.13]
[1726607251523,0.3608,60305.0,60293.0,0.3608]
[1726607251524,0.3608,60305.0,60304.0,0.212892]
[1726607252830,0.37073621,60305.0,60304.0,0.212892]
[1726607253633,0.45362721,60305.0,60304.0,0.213892]
[1726607253924,0.45362721,60305.0,60304.0,0.083892]
[1726607254118,0.45362721,60305.0,60304.0,0.002]
[1726607254826,1.14110721,60305.0,60304.0,0.002]
[1726607255122,1.14110721,60305.0,60287.0,0.41040299]
[1726607255123,0.08291,60291.0,60289.0,0.082913]
[1726607255317,0.196,60290.0,60289.0,0.082913]
[1726607255520,0.196,60290.0,60285.0,0.082918]
[1726607255728,0.082915,60287.0,60286.0,0.0854041]
[1726607257354,0.083915,60287.0,60286.0,0.0854041]
[1726607257855,0.001,60287.0,60286.0,0.0854041]
[1726607258241,0.001,60287.0,60286.0,0.0864041]
[1726607258551,0.1005,60289.0,60288.0,0.082914]
[1726607258850,0.1005,60289.0,60288.0,0.272914]
[1726607259349,0.3608,60291.0,60288.0,0.272914]
[1726607259542,0.00248786,60295.0,60294.0,0.082906]
[1726607261243,0.03451263,60295.0,60294.0,0.082906]
[1726607261842,0.03451263,60295.0,60294.0,0.083906]
[1726607262243,0.03451263,60295.0,60294.0,0.09358839]
[1726607262544,0.03551263,60295.0,60294.0,0.09458839]
[1726607263344,0.03451263,60295.0,60294.0,0.09358839]
[1726607263546,0.03551263,60295.0,60294.0,0.09458839]
[1726607265653,0.03551263,60295.0,60294.0,0.09358839]
[1726607265850,0.03551263,60295.0,60294.0,0.17649439]
[1726607266048,0.00348786,60295.0,60294.0,0.17649439]
[1726607266551,0.00348786,60295.0,60294.0,0.18975439]
[1726607269550,0.00248786,60295.0,60294.0,0.18875439]
[1726607269854,0.3608,60305.0,60294.0,0.62294239]
[1726607270151,0.3608,60305.0,60304.0,0.272892]
[1726607271249,0.00248786,60309.0,60308.0,0.082887]
[1726607271441,0.00248786,60309.0,60308.0,0.272887]
[1726607272852,0.00348786,60309.0,60308.0,0.273887]
[1726607273241,0.00348786,60309.0,60308.0,0.234887]
[1726607273454,0.001,60309.0,60308.0,0.234887]
[1726607274354,0.001,60309.0,60308.0,0.24478435]
[1726607279355,0.3608,60311.0,60310.0,0.082884]
[1726607280549,0.3608,60311.0,60310.0,0.083884]
[1726607280749,0.0967,60315.0,60314.0,0.082878]
[1726607280950,0.082879,60314.0,60312.0,0.082881]
[1726607281152,0.03201661,60313.0,60310.0,0.001]
[1726607281357,0.001,60311.0,60310.0,0.167768]
[1726607281750,0.001,60311.0,60310.0,0.084884]
[1726607282562,0.3608,60315.0,60314.0,0.082878]
[1726607282858,0.39281492,60315.0,60314.0,0.232878]
[1726607283060,0.3608,60315.0,60314.0,0.232878]
[1726607283962,0.3608,60315.0,60314.0,0.233878]
[1726607284858,0.3618,60315.0,60314.0,0.234878]
[1726607287567,0.444677,60315.0,60314.0,0.002]
[1726607287956,0.45444528,60315.0,60314.0,0.002]
[1726607293265,0.45444528,60315.0,60314.0,0.084878]
[1726607297262,0.45444528,60315.0,60314.0,0.098138]
[1726607298260,0.52705181,60315.0,60314.0,0.098138]
[1726607299061,0.39381716,60315.0,60314.0,0.181016]
[1726607300666,0.39381352,60315.0,60314.0,0.181016]
[1726607300860,0.39381352,60315.0,60314.0,0.19050766]
[1726607301462,0.03301352,60315.0,60314.0,0.19050766]
[1726607301661,0.001,60315.0,60314.0,0.098138]
[1726607302063,0.07359839,60315.0,60314.0,0.098138]
[1726607303167,0.03301352,60315.0,60314.0,0.098138]
[1726607303758,0.03301352,60315.0,60314.0,0.181016]
[1726607304058,0.03301352,60315.0,60314.0,0.098138]
[1726607305366,0.03301277,60315.0,60314.0,0.098138]
[1726607306473,0.001,60315.0,60314.0,0.098138]
[1726607307573,0.001,60315.0,60314.0,0.181016]
[1726607308472,0.3608,60324.0,60323.0,0.082866]
[1726607308660,0.3608,60324.0,60323.0,0.315732]
[1726607310067,0.3608,60324.0,60323.0,0.316732]
[1726607310979,0.3608,60324.0,60323.0,0.234866]
[1726607312864,0.0024867,60328.0,60323.0,0.234866]
[1726607312865,0.0024867,60328.0,60327.0,0.08286]
[1726607313072,0.3632867,60328.0,60327.0,0.23286]
[1726607313371,0.43587277,60328.0,60327.0,0.23286]
[1726607313962,0.43587277,60328.0,60327.0,0.24612]
[1726607314270,0.43587277,60328.0,60327.0,0.24812]
[1726607314468,0.43587277,60328.0,60327.0,0.09812]
[1726607314783,0.73547713,60328.0,60327.0,0.01526]
[1726607315080,0.56959613,60328.0,60327.0,0.01526]
[1726607315779,0.73493984,60328.0,60327.0,0.01526]
[1726607315965,0.56959613,60328.0,60327.0,0.01526]
[1726607316170,0.73493984,60328.0,60327.0,0.01526]
[1726607316371,0.56959613,60328.0,60327.0,0.01526]
[1726607319573,0.73493984,60328.0,60327.0,0.01526]
[1726607319779,0.56959613,60328.0,60327.0,0.01526]
[1726607320078,0.56960413,60328.0,60327.0,0.01526]
[1726607321482,0.47815661,60328.0,60327.0,0.01526]
[1726607322970,0.47815661,60328.0,60327.0,0.09812]
[1726607323275,0.47815661,60328.0,60327.0,0.01526]
[1726607323475,0.4461457,60328.0,60327.0,0.01526]
[1726607325673,0.47815597,60328.0,60327.0,0.01526]
[1726607326179,0.39529697,60328.0,60327.0,0.09812]
[1726607326478,0.3632867,60328.0,60327.0,0.09812]
[1726607328386,0.48673631,60328.0,60327.0,0.09812]
[1726607331888,0.56959531,60328.0,60327.0,0.09812]
[1726607332190,0.66069531,60328.0,60327.0,0.09812]
[1726607332392,0.57783631,60328.0,60327.0,0.09812]
[1726607333191,0.4543867,60328.0,60327.0,0.09812]
[1726607333377,0.57783676,60328.0,60327.0,0.09812]
[1726607333784,0.21703676,60328.0,60327.0,0.09812]
[1726607333982,0.57783676,60328.0,60327.0,0.09812]
[1726607334191,0.66069576,60328.0,60327.0,0.09812]
[1726607334585,0.66069577,60328.0,60327.0,0.09812]
[1726607336493,0.56925444,60328.0,60327.0,0.09812]
[1726607341191,0.56925444,60328.0,60327.0,0.01526]
[1726607342796,0.56925445,60328.0,60327.0,0.01526]
[1726607343788,0.73497245,60328.0,60327.0,0.01526]
[1726607343995,0.73497245,60328.0,60319.0,0.00248649]
[1726607343996,0.08287,60320.0,60319.0,0.00248649]
[1726607344298,0.11487875,60320.0,60319.0,0.00248649]
[1726607345190,0.11487875,60320.0,60319.0,0.08535749]
[1726607345392,0.11487875,60320.0,60319.0,0.08635749]
[1726607345895,0.11487875,60320.0,60319.0,0.23635749]
[1726607346204,0.11587875,60320.0,60319.0,0.23735749]
[1726607347809,0.1158821,60320.0,60319.0,0.23735749]
[1726607348788,0.0330121,60320.0,60319.0,0.23735749]
[1726607349198,0.001,60320.0,60319.0,0.23735749]
[1726607350004,0.001,60320.0,60319.0,0.18735749]
[1726607351504,0.07359426,60320.0,60319.0,0.18735749]
[1726607352400,0.08319498,60320.0,60319.0,0.18735749]
[1726607352707,0.083195,60320.0,60319.0,0.18735749]
[1726607357208,0.07359428,60320.0,60319.0,0.18735749]
[1726607357400,0.07359428,60320.0,60319.0,0.27022849]
[1726607357602,0.07359229,60320.0,60319.0,0.27022849]
[1726607358609,0.001,60320.0,60319.0,0.27022849]
[1726607361312,0.001,60320.0,60319.0,0.35309949]
[1726607361516,0.0024867,60328.0,60327.0,0.08286]
[1726607361807,0.0024867,60328.0,60327.0,0.18286]
[1726607362003,0.4545,60334.0,60333.0,0.082852]
[1726607362004,0.3608,60334.0,60333.0,0.082852]
[1726607362307,0.24837301,60355.0,60333.0,0.082852]
[1726607362308,0.00248636,60342.0,60341.0,0.082841]
[1726607364313,0.00248636,60342.0,60336.0,0.00248609]
[1726607364606,0.0957,60341.0,60340.0,0.082843]
[1726607364814,0.09788636,60342.0,60341.0,0.082841]
[1726607365411,0.00348636,60342.0,60341.0,0.187171]
[1726607365704,0.00348636,60342.0,60341.0,0.087171]
[1726607366608,0.08633894,60342.0,60341.0,0.087171]
[1726607366817,0.00248636,60342.0,60341.0,0.087171]